bitfinex/quotes_SOLUSD_20250106
["timestamp","ask_amount","ask_price","bid_price","bid_amount"]
[1736182540311,13.48483805,221.16,221.15,6.30835338]
[1736182540621,15.82483805,221.17,221.15,6.30835338]
[1736182540796,13.73581805,221.16,221.15,6.30835338]
[1736182543430,0.25098,221.16,221.15,6.30835338]
[1736182543930,13.73581805,221.16,221.15,6.30835338]
[1736182544613,0.25098,221.16,221.15,6.30835338]
[1736182544926,15.82483805,221.2,221.18,6.30835338]
[1736182545318,13.48483805,221.19,221.18,6.30835338]
[1736182546532,37.26172205,221.19,221.18,6.30835338]
[1736182547032,37.26172205,221.19,221.18,1.80835338]
[1736182547338,37.26172205,221.19,221.18,6.30835338]
[1736182548545,37.51270205,221.19,221.18,6.30835338]
[1736182548732,0.25098,221.19,221.18,6.30835338]
[1736182549128,13.73581805,221.19,221.18,6.30835338]
[1736182550653,0.25098,221.19,221.18,6.30835338]
[1736182551346,13.48483805,221.26,221.24,1.80835338]
[1736182551538,13.48483805,221.26,221.24,6.30835338]
[1736182551842,2.34,221.25,221.24,6.30835338]
[1736182552217,26.367864,221.25,221.24,6.30835338]
[1736182552951,39.85270205,221.25,221.24,6.30835338]
[1736182553131,39.85270205,221.25,221.24,1.80835338]
[1736182553748,0.25098,221.23,221.22,6.30835338]
[1736182554044,37.51270205,221.23,221.22,6.30835338]
[1736182556054,23.776884,221.22,221.2,1.80835338]
[1736182556258,20.0,221.19,221.18,1.80835338]
[1736182556456,13.48483805,221.19,221.18,1.80835338]
[1736182556954,23.776884,221.18,221.16,1.80835338]
[1736182557129,13.48483805,221.17,221.16,1.80835338]
[1736182557330,43.48483805,221.17,221.16,1.80835338]
[1736182557836,13.48483805,221.17,221.16,1.80835338]
[1736182558230,39.60172205,221.17,221.16,1.80835338]
[1736182558848,15.82483805,221.17,221.16,1.80835338]
[1736182559028,32.34,221.17,221.16,1.80835338]
[1736182559642,45.82483805,221.17,221.16,1.80835338]
[1736182559841,69.85270205,221.17,221.15,4.5]
[1736182560046,24.027864,221.12,221.1,1.80835338]
[1736182560355,37.51270205,221.11,221.1,1.80835338]
[1736182560923,67.51270205,221.11,221.1,1.80835338]
[1736182561131,43.73581805,221.11,221.1,1.80835338]
[1736182561434,30.0,221.11,221.1,1.80835338]
[1736182563863,43.48483805,221.11,221.1,1.80835338]
[1736182564539,30.0,221.11,221.1,1.80835338]
[1736182564737,43.48483805,221.11,221.1,1.80835338]
[1736182564961,43.61032805,221.11,221.1,1.80835338]
[1736182566355,30.12549,221.11,221.1,1.80835338]
[1736182566551,43.61032805,221.11,221.1,1.80835338]
[1736182567647,67.38721205,221.11,221.1,1.80835338]
[1736182568474,67.38721205,221.11,221.08,1.80835338]
[1736182568475,20.0,221.09,221.08,1.80835338]
[1736182568636,43.902374,221.06,221.05,1.80835338]
[1736182568834,57.38721205,221.06,221.05,1.80835338]
[1736182569158,23.902374,221.05,221.04,1.80835338]
[1736182569361,23.902374,221.05,221.03,1.80835338]
[1736182569556,30.0,221.04,221.03,1.80835338]
[1736182569738,43.48483805,221.04,221.03,1.80835338]
[1736182570168,45.82483805,221.04,221.03,1.80835338]
[1736182571166,32.34,221.04,221.03,1.80835338]
[1736182580900,45.82483805,221.04,221.03,1.80835338]
[1736182581802,45.95032805,221.04,221.03,1.80835338]
[1736182582008,69.72721205,221.04,221.03,1.80835338]
[1736182582712,23.902374,221.03,221.01,1.80835338]
[1736182583017,30.0,221.02,221.01,1.80835338]
[1736182583185,30.12549,221.02,221.01,1.80835338]
[1736182584220,67.38721205,221.02,221.01,1.80835338]
[1736182584720,67.51270205,221.02,221.01,1.80835338]
[1736182586904,30.0,221.02,221.01,1.80835338]
[1736182587495,30.12549,221.02,221.01,1.80835338]
[1736182588689,30.0,221.02,221.01,1.80835338]
[1736182588889,30.0,221.02,221.01,15.29319143]
[1736182589312,30.0,221.02,221.01,1.80835338]
[1736182590480,43.61032805,221.02,221.01,1.80835338]
[1736182591016,30.12549,221.02,221.01,1.80835338]
[1736182591486,30.0,221.02,221.01,1.80835338]
[1736182592394,30.12549,221.02,221.01,1.80835338]
[1736182596014,23.902374,221.01,220.99,1.80835338]
[1736182596203,38.7777172,221.0,220.99,1.80835338]
[1736182598330,30.12549,221.0,220.99,1.80835338]
[1736182598910,30.0,221.0,220.99,1.80835338]
[1736182601016,38.7777172,221.0,220.99,1.80835338]
[1736182602722,38.9032072,221.0,220.99,1.80835338]
[1736182603515,62.6800912,221.0,220.99,1.80835338]
[1736182609332,65.0000912,221.0,220.99,1.80835338]
[1736182609653,32.57098,221.0,220.99,1.80835338]
[1736182609837,30.12549,221.0,220.99,1.80835338]
[1736182610044,20.0,220.98,220.97,1.80835338]
[1736182610251,20.0,220.98,220.88,1.5767]
[1736182610252,38.6522272,220.98,220.96,1.80835338]
[1736182610730,30.0,220.98,220.96,1.80835338]
[1736182610933,30.0,220.98,220.96,10.46058058]
[1736182611119,30.0,220.97,220.96,10.46058058]
[1736182611448,30.0,220.97,220.96,1.80835338]
[1736182613123,38.6522272,220.97,220.96,1.80835338]
[1736182613325,62.5546012,220.97,220.96,1.80835338]
[1736182614349,62.6800912,220.97,220.96,1.80835338]
[1736182618628,30.25098,220.97,220.96,1.80835338]
[1736182618854,38.9032072,220.97,220.96,1.80835338]
[1736182620367,30.25098,220.97,220.96,1.80835338]
[1736182620576,30.12549,220.97,220.96,1.80835338]
[1736182621641,30.0,220.97,220.96,1.80835338]
[1736182628657,30.0,220.97,220.96,12.00028058]
[1736182630576,30.0,220.97,220.96,17.00028058]
[1736182630776,30.0,220.97,220.96,22.00028058]
[1736182631156,2.32,221.07,221.06,1.80835338]
[1736182631357,32.32,221.07,221.06,1.80835338]
[1736182631546,32.44549,221.07,221.06,1.80835338]
[1736182632592,32.32,221.07,221.06,1.80835338]
[1736182632754,30.0,221.07,221.06,1.80835338]
[1736182636083,30.12549,221.07,221.06,1.80835338]
[1736182636393,38.9032072,221.07,221.06,1.80835338]
[1736182638060,30.25098,221.07,221.06,1.80835338]
[1736182639861,38.9032072,221.07,221.06,1.80835338]
[1736182640383,30.25098,221.07,221.06,1.80835338]
[1736182640579,38.9032072,221.07,221.06,1.80835338]
[1736182643487,20.0,221.04,221.01,1.80835338]
[1736182643663,38.6522272,221.02,220.99,1.80835338]
[1736182643867,8.6522272,221.0,220.99,1.80835338]
[1736182644793,38.6522272,221.0,220.99,1.80835338]
[1736182646495,8.6522272,221.0,220.99,1.80835338]
[1736182646968,8.9032072,221.0,220.99,1.80835338]
[1736182647398,0.12549,220.99,220.97,1.80835338]
[1736182647599,0.25098,220.98,220.97,1.80835338]
[1736182648875,8.9032072,220.98,220.97,1.80835338]
[1736182649416,38.9032072,220.98,220.97,1.80835338]
[1736182649578,30.25098,220.98,220.97,1.80835338]
[1736182650403,30.12549,220.98,220.97,1.80835338]
[1736182650574,30.0,220.98,220.97,10.46058058]
[1736182653389,30.0,220.98,220.97,15.46058058]
[1736182653807,22.0577094,221.06,220.97,15.46058058]
[1736182654001,22.1831994,221.06,221.05,1.80835338]
[1736182654321,60.8354266,221.06,221.05,1.80835338]
[1736182656118,60.9609166,221.06,221.05,1.80835338]
[1736182661429,52.1831994,221.06,221.05,1.80835338]
[1736182662413,52.0577094,221.06,221.05,10.46058058]
[1736182663512,22.0577094,221.06,221.05,10.46058058]
[1736182665224,2.32,221.12,221.11,1.80835338]
[1736182665429,32.44549,221.12,221.11,1.80835338]
[1736182666335,32.57098,221.12,221.11,1.80835338]
[1736182666624,0.12549,221.11,221.09,1.80835338]
[1736182666836,8.9032072,221.1,221.09,1.80835338]
[1736182667003,32.6800912,221.1,221.09,1.80835338]
[1736182667718,62.6800912,221.1,221.09,1.80835338]
[1736182667926,30.25098,221.1,221.09,1.80835338]
[1736182668126,0.25098,221.1,221.09,1.80835338]
[1736182668918,30.25098,221.1,221.09,1.80835338]
[1736182669130,38.9032072,221.1,221.09,1.80835338]
[1736182670329,30.25098,221.1,221.09,1.80835338]
[1736182672141,38.9032072,221.1,221.09,1.80835338]
[1736182672719,23.776884,221.09,221.03,1.80835338]
[1736182672938,8.6522272,221.04,221.03,1.80835338]
[1736182673535,8.6522272,221.05,221.03,1.80835338]
[1736182673917,30.0,221.04,221.03,1.80835338]
[1736182674825,28.19164662,221.03,221.0,8.6522272]
[1736182675033,28.19164662,221.03,220.99,8.6522272]
[1736182676033,30.0,221.02,221.0,8.6522272]
[1736182676653,30.0,221.02,221.01,8.6522272]
[1736182677346,30.0,221.02,220.94,6.5028]
[1736182677533,30.0,221.02,221.0,8.6522272]
[1736182678045,30.0,221.02,220.99,8.6522272]
[1736182678365,30.0,221.02,221.01,8.6522272]
[1736182684357,30.0,221.02,221.01,20.2520272]
[1736182684574,30.0,221.02,221.01,44.0289112]
[1736182685464,30.0,221.02,221.01,39.0289112]
[1736182686151,30.0,221.02,221.01,1.5998]
[1736182686670,30.0,221.02,220.93,2.32]
[1736182686671,30.0,221.02,221.0,8.6522272]
[1736182687184,30.0,221.02,220.99,8.6522272]
[1736182687487,30.0,221.02,220.98,8.6522272]
[1736182687702,30.0,221.02,220.99,8.6522272]
[1736182688176,30.0,221.02,221.0,8.6522272]
[1736182689170,30.0,221.02,220.99,8.6522272]
[1736182691000,30.0,221.02,221.0,8.6522272]
[1736182691166,30.0,221.02,220.96,21.5552]
[1736182691363,30.0,221.02,221.0,8.6522272]
[1736182693960,30.0,221.02,220.99,8.6522272]
[1736182695868,30.0,221.02,220.96,8.6522272]
[1736182696495,30.0,221.02,220.97,8.6522272]
[1736182696692,30.0,221.02,220.98,8.6522272]
[1736182697497,30.0,221.02,220.99,8.6522272]
[1736182700976,30.0,221.02,221.01,8.6522272]
[1736182703204,30.0,221.02,220.99,8.6522272]
[1736182703367,30.0,221.02,221.01,8.6522272]
[1736182718222,30.0,221.02,221.01,37.4291112]
[1736182718587,28.19164662,221.03,221.02,40.087984]
[1736182718786,28.19164662,221.03,221.02,48.7402112]
[1736182737160,28.19164662,221.03,220.99,16.3127]
[1736182737326,28.19164662,221.03,220.97,5.0]
[1736182737530,28.19164662,221.03,220.98,8.6522272]
[1736182739260,28.19164662,221.03,220.98,20.0]
[1736182739471,28.19164662,221.03,221.0,20.0]
[1736182739851,0.12549,221.02,220.93,11.6298]
[1736182740160,8.6522272,221.0,220.91,5.0]
[1736182740467,8.6522272,221.01,220.97,20.0]
[1736182740977,0.12549,221.0,220.95,8.6522272]
[1736182741487,0.12549,221.0,220.94,8.6522272]
[1736182741657,0.12549,220.98,220.89,5.0]
[1736182741960,0.12549,220.98,220.9,8.6522272]
[1736182741961,0.25098,220.96,220.9,8.6522272]
[1736182743255,0.25098,220.95,220.84,16.32]
[1736182743452,0.12549,220.92,220.82,6.5409]
[1736182743661,0.12549,220.92,220.87,8.6522272]
[1736182744371,0.12549,220.93,220.85,20.0]
[1736182744541,8.6522272,220.93,220.87,8.6522272]
[1736182745671,8.6522272,220.95,220.88,8.6522272]
[1736182745851,8.6522272,220.96,220.89,8.6522272]
[1736182746035,2.32,220.95,220.9,8.6522272]
[1736182746237,2.32,220.98,220.93,8.6522272]
[1736182746457,2.32,220.98,220.96,8.6522272]
[1736182746857,2.32,220.98,220.95,8.6522272]
[1736182747380,2.32,220.98,220.94,8.6522272]
[1736182748871,2.32,220.98,220.95,8.6522272]
[1736182749073,2.32,220.98,220.96,8.6522272]
[1736182750875,2.32,220.98,220.95,8.6522272]
[1736182751181,2.32,220.98,220.96,8.6522272]
[1736182753680,6.264,221.0,220.91,23.776884]
[1736182753681,28.19164662,221.03,220.97,8.6522272]
[1736182753861,30.51164662,221.03,220.98,8.1522272]
[1736182754068,0.12549,221.02,220.99,8.6522272]
[1736182754259,0.12549,221.02,220.96,20.0]
[1736182754458,0.12549,221.02,220.98,8.6522272]
[1736182754880,0.12549,221.02,220.96,20.0]
[1736182754881,0.12549,221.02,220.97,8.6522272]
[1736182755055,28.19164662,221.03,221.01,8.6522272]
[1736182755256,28.19164662,221.03,221.02,37.4291112]
[1736182755461,28.19164662,221.03,221.02,32.4291112]
[1736182756258,28.19164662,221.03,221.02,42.4291112]
[1736182763087,28.19164662,221.03,221.02,42.5546012]
[1736182763292,22.050977,221.13,221.07,23.776884]
[1736182763491,22.050977,221.13,221.11,8.6522272]
[1736182763797,22.050977,221.13,221.1,8.6522272]
[1736182764197,22.050977,221.13,221.07,23.776884]
[1736182764399,21.550977,221.13,221.1,8.6522272]
[1736182767102,21.550977,221.13,221.09,8.6522272]
[1736182768491,8.6522272,221.12,221.06,20.0]
[1736182768699,21.550977,221.13,221.0,5.0]
[1736182768700,8.7777172,221.11,221.0,21.3122]
[1736182768877,0.12549,221.11,221.04,8.6522272]
[1736182769081,8.7777172,221.11,221.05,8.6522272]
[1736182769601,8.7777172,221.11,221.04,8.6522272]
[1736182769602,8.6522272,221.1,221.04,8.6522272]
[1736182770709,8.6522272,221.1,221.03,28.6522272]
[1736182771805,8.6522272,221.1,221.04,8.6522272]
[1736182772900,8.6522272,221.07,220.98,1.5189]
[1736182773089,21.550977,221.13,221.0,8.6522272]
[1736182773090,8.6522272,221.06,221.0,8.6522272]
[1736182773405,8.6522272,221.06,220.99,8.6522272]
[1736182774384,8.6522272,221.06,221.0,8.6522272]
[1736182774908,8.6522272,221.07,221.01,8.6522272]
[1736182775308,8.6522272,221.07,221.0,28.6522272]
[1736182776291,8.6522272,221.07,221.01,8.6522272]
[1736182776591,8.7777172,221.07,221.0,28.6522272]
[1736182776909,8.6522272,221.06,221.0,28.6522272]
[1736182778604,8.6522272,221.02,220.96,20.0]
[1736182778791,8.6522272,221.02,220.95,8.6522272]
[1736182778991,8.6522272,221.01,220.95,8.6522272]
[1736182779780,8.6522272,221.02,220.95,8.6522272]
[1736182779998,8.6522272,221.03,220.96,8.6522272]
[1736182780204,8.6522272,221.05,220.98,8.6522272]
[1736182780409,8.6522272,221.05,220.99,8.6522272]
[1736182781578,10.1906272,221.07,221.0,8.6522272]
[1736182782119,8.6522272,221.06,221.0,8.6522272]
[1736182782814,10.1906272,221.07,221.0,8.6522272]
[1736182784111,0.12549,221.06,221.0,8.6522272]
[1736182784410,8.6522272,221.05,220.96,23.776884]
[1736182784614,8.6522272,221.05,220.98,8.6522272]
[1736182789723,0.12549,221.06,220.99,8.6522272]
[1736182790019,8.7777172,221.06,220.99,8.6522272]
[1736182790596,8.7777172,221.06,221.0,8.6522272]
[1736182791518,8.7777172,221.06,220.96,23.776884]
[1736182791816,8.7777172,221.06,220.99,8.6522272]
[1736182792012,8.6522272,221.05,220.99,8.6522272]
[1736182792223,8.6522272,221.03,220.92,11.3162]
[1736182792394,8.6522272,221.01,220.92,11.3162]
[1736182792719,8.6522272,221.01,220.95,8.6522272]
[1736182793016,8.6522272,221.02,220.95,8.6522272]
[1736182793826,8.6522272,221.01,220.95,8.6522272]
[1736182795792,8.6522272,221.02,220.95,8.6522272]
[1736182795992,8.6522272,221.02,220.92,11.3162]
[1736182795993,0.12549,221.02,220.96,8.6522272]
[1736182797621,8.7777172,221.02,220.95,8.6522272]
[1736182797920,8.6522272,221.02,220.95,8.6522272]
[1736182799022,8.6522272,221.01,220.94,8.6522272]
[1736182799201,8.6522272,221.0,220.92,20.0]
[1736182799402,8.6522272,220.99,220.92,28.6522272]
[1736182799934,15.1716272,220.99,220.93,8.6522272]
[1736182800108,15.1716272,220.99,220.92,28.6522272]
[1736182800507,8.6522272,220.97,220.9,8.6522272]
[1736182800734,8.6522272,220.96,220.9,8.6522272]
[1736182801235,1.6368,220.98,220.87,8.6522272]
[1736182801433,8.6522272,220.95,220.88,8.6522272]
[1736182801838,8.6522272,220.94,220.83,12.8778]
[1736182802028,8.6522272,220.93,220.86,8.6522272]
[1736182802612,8.6522272,220.93,220.87,8.6522272]
[1736182803017,10.9522272,220.94,220.87,8.6522272]
[1736182803644,8.6522272,220.93,220.87,8.6522272]
[1736182803847,10.9522272,220.94,220.87,8.6522272]
[1736182805340,10.9522272,220.94,220.88,8.6522272]
[1736182805639,0.12549,220.97,220.91,8.6522272]
[1736182805939,8.6522272,220.95,220.86,23.776884]
[1736182806138,8.6522272,220.95,220.89,8.6522272]
[1736182806438,8.6522272,220.94,220.87,8.6522272]
[1736182806639,8.6522272,220.92,220.86,8.6522272]
[1736182807342,8.6522272,220.9,220.84,20.0]
[1736182807652,8.6522272,220.89,220.83,20.0]
[1736182807850,8.6522272,220.9,220.83,28.6522272]
[1736182808359,8.6522272,220.88,220.78,11.3234]
[1736182808519,8.6522272,220.88,220.82,8.6522272]
[1736182809655,8.6522272,220.88,220.76,5.0]
[1736182809656,8.6522272,220.88,220.81,8.6522272]
[1736182810209,8.6522272,220.87,220.8,8.6522272]
[1736182810833,8.6522272,220.86,220.79,8.6522272]
[1736182811066,8.6522272,220.86,220.8,8.6522272]
[1736182811346,8.6522272,220.83,220.77,8.6522272]
[1736182811839,8.6522272,220.84,220.78,8.6522272]
[1736182812045,14.8687272,220.85,220.79,8.6522272]
[1736182812342,6.2165,220.85,220.8,8.6522272]
[1736182812636,8.6522272,220.89,220.82,8.6522272]
[1736182812844,8.2228,220.9,220.87,8.6522272]
[1736182813056,6.5894,220.95,220.89,8.6522272]
[1736182813215,6.5894,220.95,220.92,8.6522272]
[1736182813634,6.5894,220.95,220.91,8.6522272]
[1736182813843,6.5894,220.95,220.92,8.6522272]
[1736182814045,6.5894,220.95,220.86,20.0]
[1736182814046,6.5894,220.95,220.89,20.0]
[1736182814341,6.5894,220.95,220.91,8.6522272]
[1736182814641,6.5894,220.95,220.9,8.6522272]
[1736182814944,6.5894,220.95,220.87,8.6522272]
[1736182814945,8.6522272,220.94,220.87,8.6522272]
[1736182815135,13.53121922,220.92,220.86,13.53121922]
[1736182815333,13.53121922,220.88,220.77,12.828]
[1736182815537,13.53121922,220.87,220.81,13.53121922]
[1736182815738,13.53121922,220.89,220.82,13.53121922]
[1736182816441,13.53121922,220.88,220.82,13.53121922]
[1736182816647,13.53121922,220.87,220.81,13.53121922]
[1736182817057,13.53121922,220.86,220.79,13.53121922]
[1736182817347,13.53121922,220.85,220.79,13.53121922]
[1736182817552,13.53121922,220.86,220.79,13.53121922]
[1736182817726,13.53121922,220.85,220.79,13.53121922]
[1736182818130,13.65670922,220.87,220.8,13.53121922]
[1736182818939,13.53121922,220.86,220.8,13.53121922]
[1736182819436,13.65670922,220.87,220.8,13.53121922]
[1736182819717,1.5873,220.88,220.82,13.53121922]
[1736182820626,15.11851922,220.88,220.82,13.53121922]
[1736182820824,1.5873,220.88,220.82,13.53121922]
[1736182821638,15.11851922,220.88,220.82,13.53121922]
[1736182821843,13.53121922,220.86,220.8,13.53121922]
[1736182822339,13.53121922,220.84,220.78,20.0]
[1736182822541,13.53121922,220.84,220.77,33.53121922]
[1736182822746,13.53121922,220.85,220.78,13.53121922]
[1736182822945,13.53121922,220.85,220.79,13.53121922]
[1736182823954,13.65670922,220.86,220.79,13.53121922]
[1736182824138,13.65670922,220.86,220.8,13.53121922]
[1736182824338,13.65670922,220.86,220.77,20.0]
[1736182824339,13.53121922,220.85,220.77,20.0]
[1736182824558,13.53121922,220.85,220.79,13.53121922]
[1736182825355,13.65670922,220.86,220.79,13.53121922]
[1736182826152,13.53121922,220.85,220.79,13.53121922]
[1736182826533,13.53121922,220.85,220.78,13.53121922]
[1736182827658,13.53121922,220.85,220.79,13.53121922]
[1736182827866,13.53121922,220.84,220.77,13.53121922]
[1736182828029,13.53121922,220.83,220.76,13.53121922]
[1736182828229,13.53121922,220.84,220.77,13.53121922]
[1736182828855,13.53121922,220.83,220.76,13.53121922]
[1736182830088,15.83121922,220.82,220.75,13.53121922]
[1736182830655,13.53121922,220.81,220.74,23.53121922]
[1736182831162,0.12549,220.8,220.74,10.0]
[1736182831374,13.53121922,220.77,220.74,10.0]
[1736182831867,13.53121922,220.76,220.74,10.0]
[1736182832250,13.78219922,220.75,220.74,10.0]
[1736182834042,13.1263731,220.76,220.74,10.0]
[1736182834043,13.53121922,220.76,220.74,10.0]
[1736182834347,2.3,220.78,220.74,10.0]
[1736182834652,2.3,220.83,220.77,13.53121922]
[1736182834858,2.3,220.83,220.79,13.53121922]
[1736182835164,2.3,220.83,220.78,13.53121922]
[1736182836651,2.3,220.83,220.8,13.53121922]
[1736182836852,2.3,220.83,220.79,13.53121922]
[1736182837059,2.3,220.83,220.77,13.53121922]
[1736182837254,13.53121922,220.81,220.75,13.53121922]
[1736182837460,13.53121922,220.79,220.74,10.0]
[1736182837635,13.53121922,220.76,220.74,10.0]
[1736182837834,13.53121922,220.75,220.74,10.0]
[1736182838146,15.83121922,220.75,220.74,10.0]
[1736182838544,16.08219922,220.75,220.74,10.0]
[1736182840649,41.46858322,220.75,220.74,10.0]
[1736182840961,24.027864,220.74,220.63,13.53121922]
[1736182841275,0.12549,220.69,220.64,13.53121922]
[1736182841772,13.53121922,220.71,220.64,13.53121922]
[1736182842469,13.53121922,220.69,220.63,13.53121922]
[1736182842650,13.53121922,220.7,220.63,13.53121922]
[1736182843839,13.53121922,220.69,220.63,13.53121922]
[1736182844069,13.53121922,220.69,220.62,13.53121922]
[1736182844860,13.53121922,220.69,220.63,13.53121922]
[1736182845048,2.3,220.7,220.65,13.53121922]
[1736182845251,15.83121922,220.7,220.63,13.53121922]
[1736182845470,2.3,220.7,220.64,13.53121922]
[1736182845671,2.3,220.7,220.65,13.53121922]
[1736182845967,2.3,220.7,220.64,13.53121922]
[1736182846273,2.3,220.7,220.65,13.53121922]
[1736182846479,2.3,220.7,220.64,13.53121922]
[1736182846978,2.3,220.7,220.66,13.53121922]
[1736182847473,2.3,220.73,220.68,13.53121922]
[1736182847672,2.3,220.73,220.69,13.53121922]
[1736182847972,2.3,220.73,220.67,13.53121922]
[1736182848172,13.53121922,220.69,220.56,2.21728031]
[1736182848381,13.53121922,220.69,220.63,13.53121922]
[1736182848535,0.12549,220.72,220.64,13.53121922]
[1736182848536,13.53121922,220.71,220.64,13.53121922]
[1736182848737,13.53121922,220.7,220.63,13.53121922]
[1736182850572,13.53121922,220.71,220.61,20.0]
[1736182850764,15.83121922,220.73,220.67,13.53121922]
[1736182850967,13.53121922,220.72,220.65,13.53121922]
[1736182851273,2.3,220.73,220.68,13.53121922]
[1736182851562,15.83121922,220.73,220.66,13.53121922]
[1736182851767,13.53121922,220.72,220.66,13.53121922]
[1736182852151,15.83121922,220.73,220.66,13.53121922]
[1736182852673,13.53121922,220.72,220.65,13.53121922]
[1736182852881,13.53121922,220.7,220.63,13.53121922]
[1736182853947,13.53121922,220.7,220.64,13.53121922]
[1736182854147,13.53121922,220.71,220.64,13.53121922]
[1736182854763,13.53121922,220.71,220.58,11.3337]
[1736182854764,13.53121922,220.69,220.62,20.0]
[1736182854964,2.3,220.73,220.56,1.5376]
[1736182854965,13.53121922,220.67,220.56,1.5376]
[1736182855240,13.53121922,220.68,220.61,13.53121922]
[1736182855662,13.53121922,220.69,220.62,13.53121922]
[1736182856175,13.53121922,220.69,220.63,13.53121922]
[1736182857075,13.53121922,220.69,220.62,13.53121922]
[1736182857282,13.53121922,220.68,220.61,13.53121922]
[1736182858486,13.53121922,220.69,220.63,13.53121922]
[1736182859655,13.53121922,220.69,220.62,13.53121922]
[1736182859858,13.53121922,220.68,220.62,13.53121922]
[1736182860268,13.53121922,220.69,220.62,13.53121922]
[1736182860545,13.53121922,220.68,220.62,13.53121922]
[1736182861259,2.3,220.7,220.64,13.53121922]
[1736182861464,13.53121922,220.67,220.62,20.0]
[1736182861775,13.53121922,220.68,220.61,13.53121922]
[1736182862254,13.53121922,220.68,220.6,13.53121922]
[1736182862881,13.53121922,220.67,220.6,13.53121922]
[1736182863382,13.53121922,220.66,220.59,33.53121922]
[1736182863682,13.53121922,220.65,220.58,13.53121922]
[1736182866594,13.53121922,220.64,220.57,13.53121922]
[1736182868487,13.65670922,220.63,220.56,13.53121922]
[1736182868990,13.53121922,220.63,220.57,13.53121922]
[1736182869492,13.53121922,220.64,220.58,13.53121922]
[1736182869684,13.53121922,220.63,220.57,13.53121922]
[1736182870587,3.8625,220.66,220.58,13.53121922]
[1736182870588,13.53121922,220.64,220.58,13.53121922]
[1736182870759,17.39371922,220.66,220.55,13.53121922]
[1736182870961,2.3,220.69,220.64,13.53121922]
[1736182871195,2.3,220.69,220.65,13.53121922]
[1736182871500,2.3,220.69,220.63,13.53121922]
[1736182871960,13.53121922,220.7,220.63,13.53121922]
[1736182872159,2.3,220.7,220.65,13.53121922]
[1736182872383,8.16,220.73,220.67,13.53121922]
[1736182872569,10.46,220.73,220.67,13.53121922]
[1736182872783,8.16,220.73,220.67,13.53121922]
[1736182873101,10.46,220.73,220.67,13.53121922]
[1736182873389,13.53121922,220.77,220.71,13.53121922]
[1736182873681,21.57051922,220.78,220.71,13.53121922]
[1736182873879,21.57051922,220.78,220.66,13.53121922]
[1736182873880,0.09627678,220.72,220.69,13.53121922]
[1736182874078,0.09627678,220.72,220.7,13.53121922]
[1736182874389,0.09627678,220.72,220.69,13.53121922]
[1736182874767,0.09627678,220.72,220.68,13.53121922]
[1736182874974,0.09627678,220.72,220.66,13.53121922]
[1736182874975,13.627496,220.72,220.66,13.53121922]
[1736182875294,13.53121922,220.7,220.63,13.53121922]
[1736182875493,13.53121922,220.69,220.63,13.53121922]
[1736182875687,13.53121922,220.71,220.64,13.53121922]
[1736182875888,13.53121922,220.71,220.6,23.776884]
[1736182876207,0.09627678,220.72,220.67,13.53121922]
[1736182876370,0.09627678,220.72,220.68,13.53121922]
[1736182877106,0.09627678,220.72,220.71,13.53121922]
[1736182879685,0.09627678,220.72,220.69,13.53121922]
[1736182879989,0.09627678,220.72,220.68,13.53121922]
[1736182880189,15.927496,220.72,220.65,13.53121922]
[1736182880405,13.53121922,220.71,220.64,13.53121922]
[1736182880578,2.39627678,220.72,220.66,13.53121922]
[1736182880902,0.09627678,220.72,220.68,13.53121922]
[1736182881133,0.09627678,220.72,220.67,13.53121922]
[1736182881599,0.09627678,220.72,220.68,13.53121922]
[1736182881984,0.09627678,220.72,220.67,13.53121922]
[1736182882207,0.09627678,220.72,220.66,13.53121922]
[1736182882727,13.878476,220.72,220.65,13.53121922]
[1736182883712,13.627496,220.72,220.66,13.53121922]
[1736182884386,0.09627678,220.72,220.66,13.53121922]
[1736182884586,0.09627678,220.72,220.67,13.53121922]
[1736182885494,0.09627678,220.72,220.66,13.53121922]
[1736182886004,13.627496,220.72,220.65,13.53121922]
[1736182886518,0.09627678,220.72,220.67,13.53121922]
[1736182886719,0.09627678,220.72,220.68,13.53121922]
[1736182887014,0.09627678,220.72,220.67,13.53121922]
[1736182887608,13.627496,220.72,220.65,13.53121922]
[1736182887981,13.53121922,220.7,220.63,13.53121922]
[1736182888185,13.53121922,220.7,220.59,11.3327]
[1736182888186,13.53121922,220.69,220.62,13.53121922]
[1736182888387,13.53121922,220.7,220.63,13.53121922]
[1736182889112,13.53121922,220.71,220.64,13.53121922]
[1736182889307,0.09627678,220.72,220.66,13.53121922]
[1736182889515,0.09627678,220.72,220.67,13.53121922]